Cogmind - Beta 14 @@@ ROGUE MODE // 2024.09.16 @ 19:11:53 Player: star Result: Destroyed by as-50734 with Assembled Rifle Performance ------------- Evolutions (1) 500 Regions Visited (3) 600 Robots Destroyed (49) 245 Value Destroyed (1466) 1466 Prototype IDs (3) 60 Alien Tech Used (0) 0 Bonus (398) 398 TOTAL SCORE: 3269 Bonus ------- Pacifist 200 High Alert Combat Kills 198 Cogmind --------- Core Integrity 0/400 Matter 300/300 Energy 99/100 System Corruption 0% Temperature Cool (0) Movement Core (50) Location -9/Mines Parts ------- > --- POWER (1) -------- (None) > --- PROPULSION (3) --- (None) > --- UTILITY (2) ------ Improved Targeting Computer > --- WEAPON (3) ------- (None) > --- INVENTORY (5) ---- Improved Targeting Computer Hardened Light Armor Plating Hacking Suite Recalibrator Mini Grenade Launcher Peak State ------------ > --- POWER ------------ Ion Engine > --- PROPULSION ------- Wheel Improved Flight Unit Improved Flight Unit > --- UTILITY ---------- Improved Heat Sink Targeting Computer > --- WEAPON ----------- EM Pulse Gun Advanced Beam Cannon Shotgun > --- INVENTORY -------- Improved Flight Unit Improved Heat Sink Huge Storage Unit Small Laser Mini Grenade Launcher [Rating: 19] Favorites ----------- Power Ion Engine Engine Ion Engine Propulsion Light Treads Treads Light Treads Leg Aluminum Leg Wheel Wheel Flight Unit Improved Flight Unit Utility Improved Heat Sink Device Improved Heat Sink Processor Targeting Computer Weapon Shotgun Energy Gun EM Pulse Gun Energy Cannon Advanced Beam Cannon Ballistic Gun Shotgun Build | -11 -10 -9 -9 ------- Run | Yrd Mat Mat Min Slots Evolved 2 | . . 2 . Power . | . . . . Propulsion 1 | . . 1 . Utility . | . . . . Weapon 1 | . . 1 . Parts Attached 40 | 5 2 33 . Power 2 | 1 . 1 . Engine 2 | 1 . 1 . Core . | . . . . Reactor . | . . . . Propulsion 16 | 2 . 14 . Treads 5 | . . 5 . Leg 1 | . . 1 . Wheel 7 | 2 . 5 . Hover . | . . . . Flight 3 | . . 3 . Utility 6 | . 2 4 . Device 4 | . 2 2 . Storage . | . . . . Processor 2 | . . 2 . Hackware . | . . . . Protection . | . . . . Artifact . | . . . . Weapon 16 | 2 . 14 . Energy Gun 4 | 1 . 3 . Energy Cannon 4 | . . 4 . Ballistic Gun 8 | 1 . 7 . Ballistic Cannon . | . . . . Launcher . | . . . . Special Weapon . | . . . . Impact Weapon . | . . . . Slashing Weapon . | . . . . Piercing Weapon . | . . . . Special Melee Weapon . | . . . . Unidentified Prototypes 3 | . . 3 . Parts Lost 14 | . . 6 8 Power 2 | . . 1 1 Propulsion 6 | . . 3 3 Utility 1 | . . . 1 Weapon 5 | . . 2 3 Highest Loss Streak 7 | . . 2 7 To Critical Strikes . | . . . . Average Slot Usage (%) 91 | . 89 91 91 Engine 7 | . 14 6 10 Treads 12 | . . 9 27 Wheel 10 | . 28 11 . Flight 5 | . . 7 . Device 13 | . 17 13 10 Processor 8 | . . 8 11 Energy Gun 6 | . 14 5 10 Energy Cannon 6 | . . 8 . Ballistic Gun 18 | . 14 17 21 Peak Build Rating 19 | 5 7 19 17 Average Rating 14 | 3 6 15 16 On Entrance 7 | . 5 7 17 Naked Turns . | . . . . Heaviest Build 17 | 8 10 17 15 Greatest Support 60 | 26 26 60 60 Greatest Overweight (x) 2 | . . 2 . Average Overweight (x) . | . . . . Largest Inventory Capacity 5 | 5 5 5 5 Average Capacity 5 | 5 5 5 5 Most Carried 5 | . 2 5 5 Average Carried 4 | . 1 4 5 Final Capacity 5 | 5 5 5 5 Final Carried 5 | . 2 5 5 Class Distribution -------------------- 46% | Scavenger-Gunner 28% | Gunner 16% | Mutant 8% | Skirmisher Dominant Class ---------------- Mutant | -10/Materials Scavenger-Gunner | -9/Materials Scavenger-Gunner | -9/Mines Resources | -11 -10 -9 -9 ----------- Run | Yrd Mat Mat Min Matter Collected 1074 | 232 . 742 100 Remotely . | . . . . Salvage Created 2038 | . . 1815 223 Parts 123 | . . 107 16 Haulers Intercepted 6 | . . 6 . Recyclers Shooed 1 | . . 1 . Parts Field Recycled . | . . . . Retrieved Matter . | . . . . Parts Self-Destructed . | . . . . Prevented . | . . . . Kills | -11 -10 -9 -9 ------- Run | Yrd Mat Mat Min Combat Hostiles Destroyed 37 | . . 32 5 Guns 23 | . . 19 4 Cannons 13 | . . 13 . AOE 1 | . . . 1 Classes Destroyed 9 | . . 9 . Worker 3 | . . 3 . Hauler 6 | . . 6 . Recycler 1 | . . 1 . Mechanic 1 | . . 1 . Operator 1 | . . 1 . Swarmer 3 | . . 3 . Grunt 24 | . . 19 5 Duelist 1 | . . 1 . Sentry 9 | . . 9 . Best Kill Streak 11 | . . 11 3 Combat Bots Only 8 | . . 8 3 Max Kills in Single Turn 2 | . . 2 2 Gunslinging . | . . . . Exploded 1 | . . . 1 Melee . | . . . . Uniques/NPCs Destroyed . | . . . . Combat | -11 -10 -9 -9 -------- Run | Yrd Mat Mat Min Hostile Shots Fired 156 | . 1 127 28 Missed 33 | . 1 28 4 Damage Taken 1935 | . . 1318 617 Core 408 | . . 188 220 Absorbed by Shields . | . . . . Core Remaining (%) 100 | 100 100 . . Volleys Fired 100 | . . 91 9 Largest 3 | . . 3 3 Hottest 131 | . . 131 91 Shots Fired 277 | . . 252 25 Gun 198 | . . 173 25 Cannon 79 | . . 79 . Launcher . | . . . . Special . | . . . . Kinetic 148 | . . 131 17 Thermal 80 | . . 80 . Explosive . | . . . . Electromagnetic 49 | . . 41 8 Robot Hit Streak 24 | . . 24 13 Robot Miss Streak 5 | . . 5 3 Penetration Max . | . . . . Secondary Targets 1 | . . 1 . Max Gunslinging Chain 1 | . . 1 . Shots Hit Robots 193 | . . 174 19 Core Hits 94 | . . 79 15 Critical Kills 1 | . . 1 . Critical Parts Destroyed 2 | . . 1 1 Critical Strikes 6 | . . 5 1 Destroy 3 | . . 2 1 Corrupt 3 | . . 3 . Melee Attacks . | . . . . Impact . | . . . . Slashing . | . . . . Piercing . | . . . . Sneak Attacks . | . . . . Combat Hostiles . | . . . . Follow-up Attacks . | . . . . Damage Inflicted 3656 | . . 3255 401 Guns 2349 | . . 1988 361 Cannons 1065 | . . 1065 . Explosions 222 | . . 182 40 Melee . | . . . . Ramming 20 | . . 20 . Kinetic 1702 | . . 1510 192 Thermal 1299 | . . 1259 40 Explosive . | . . . . Electromagnetic 635 | . . 466 169 Impact . | . . . . Slashing . | . . . . Piercing . | . . . . Highest Corruption . | . . . . Average Corruption . | . . . . Corruption Purged . | . . . . Corruption Blocked . | . . . . Overload Shots . | . . . . Overflow Damage 24 | . . 24 . Projectiles . | . . . . Explosions 24 | . . 24 . Melee . | . . . . Knockbacks . | . . . . Impact . | . . . . Kinetic . | . . . . Secondary . | . . . . Self-Inflicted Damage 84 | . . 57 27 Shots 3 | . . 2 1 Rammed 3 | . . 3 . Targets Rammed 3 | . . 3 . Kicked . | . . . . Crushed . | . . . . Highest Temperature 377 | . . 377 5 Average Temperature 63 | . . 63 3 Received Heat Transfer 618 | . . 567 51 Siege Activations . | . . . . Robots Corrupted . | . . . . Combat Hostiles . | . . . . Parts Fried 1 | . . 1 . Impact Corruptions . | . . . . Robots Melted . | . . . . Combat Hostiles . | . . . . Parts Melted 1 | . . 1 . Heat Transferred 2349 | . . 2249 100 Parts Sabotaged . | . . . . Parts Stolen . | . . . . Parts Stripped . | . . . . Power Chain Reactions 5 | . . 4 1 Alert | -11 -10 -9 -9 ------- Run | Yrd Mat Mat Min Peak Influence 748 | . 45 748 396 Initial 282 | . . 18 282 Average 421 | . 14 489 357 Maximum Alert Level 3 | . . 3 1 Low Security (%) 18 | 100 100 13 . Level 1 30 | . . 17 100 Level 2 40 | . . 55 . Level 3 9 | . . 13 . Level 4 . | . . . . Level 5 . | . . . . High Security . | . . . . Max Security . | . . . . Squads Dispatched 3 | . . 3 . Investigation . | . . . . Extermination . | . . . . Reinforcement 3 | . . 3 . Assault . | . . . . Garrison . | . . . . Intercept . | . . . . Searches Triggered . | . . . . Construction Impeded . | . . . . Haulers Reinforced . | . . . . Active Scanning Responses . | . . . . Cargo Convoy Interrupts . | . . . . Stealth | -11 -10 -9 -9 --------- Run | Yrd Mat Mat Min Distress Signals 7 | . . 7 . Communications Jammed . | . . . . Distress Signals . | . . . . Times Spotted 82 | . 8 54 20 Peak Tracking Total 16 | . 7 8 16 Tactical Retreats 7 | . 1 6 . Traps | -11 -10 -9 -9 ------- Run | Yrd Mat Mat Min Traps Triggered 2 | . . 2 . Indirectly . | . . . . Trap Hack Attempts . | . . . . Triggered . | . . . . Disarmed . | . . . . Reprogrammed . | . . . . Reused . | . . . . Traps Extracted . | . . . . Installed . | . . . . Triggered . | . . . . Machines | -11 -10 -9 -9 ---------- Run | Yrd Mat Mat Min Machines Disabled 4 | . . 4 . Max in Single Turn 1 | . . 1 . Machines Repaired . | . . . . Machines Dismantled . | . . . . Machines Sabotaged . | . . . . Overloaded Fab Kills . | . . . . Hacking | -11 -10 -9 -9 --------- Run | Yrd Mat Mat Min Machines Accessed 1 | . . 1 . Terminals . | . . . . Fabricators . | . . . . Repair Stations . | . . . . Recycling Units . | . . . . Scanalyzers 1 | . . 1 . Garrison Access . | . . . . Total Hacks 2 | . . 2 . Successful 2 | . . 2 . Failed . | . . . . Catastrophic . | . . . . Database Lockouts . | . . . . Manual . | . . . . Terminals . | . . . . Fabricators . | . . . . Repair Stations . | . . . . Recycling Units . | . . . . Scanalyzers 2 | . . 2 . Garrison Access . | . . . . Terminal Hacks . | . . . . Fabricator Hacks . | . . . . Repair Station Hacks . | . . . . Recycling Unit Hacks . | . . . . Scanalyzer 2 | . . 2 . Insert Component 1 | . . 1 . Analyze 1 | . . 1 . Garrison Access Hacks . | . . . . Unauthorized Hacks . | . . . . Terminals . | . . . . Fabricators . | . . . . Repair Stations . | . . . . Recycling Units . | . . . . Scanalyzers . | . . . . Garrison Access . | . . . . Data Cores Recovered . | . . . . Used . | . . . . Hacking Detections 1 | . . 1 . Full Trace Events . | . . . . Feedback Events . | . . . . Feedback Blocked . | . . . . Robot Schematics Acquired . | . . . . Robots Built . | . . . . Authchips . | . . . . Time . | . . . . Total Robot Build Rating . | . . . . Part Schematics Acquired 1 | . . 1 . Parts Built . | . . . . Authchips . | . . . . Time . | . . . . Total Part Build Rating . | . . . . Parts Repaired . | . . . . Time . | . . . . Parts Recycled . | . . . . Recycled Matter . | . . . . Retrieved Matter . | . . . . Retrieved Components . | . . . . Parts Scanalyzed 1 | . . 1 . Part Schematics Acquired 1 | . . 1 . Parts Damaged . | . . . . Bothacking | -11 -10 -9 -9 ------------ Run | Yrd Mat Mat Min Used RIF Installer . | . . . . Robots Hacked . | . . . . Non-combat . | . . . . Combat . | . . . . Robot Hacks Applied . | . . . . Relay Couplers Released . | . . . . Fabnet Peak Effective % . | . . . . Robots Rewired . | . . . . Allies Hacked . | . . . . Hacks Repelled . | . . . . Allies | -11 -10 -9 -9 -------- Run | Yrd Mat Mat Min Total Allies . | . . . . Largest Group . | . . . . Highest-Rated Group . | . . . . Highest-Rated Ally . | . . . . Total Orders . | . . . . Ally Attacks . | . . . . Total Damage . | . . . . Kills . | . . . . Allies Corrupted . | . . . . Allies Melted . | . . . . Intel | -11 -10 -9 -9 ------- Run | Yrd Mat Mat Min Robot Analysis Total . | . . . . Derelict Logs Recovered 1 | . . . 1 Drone Launches . | . . . . Drone Recoveries . | . . . . Exploration | -11 -10 -9 -9 ------------- Run | Yrd Mat Mat Min Turns Passed 1934 | 73 108 1409 344 Spaces Moved 1257 | 72 112 886 187 Core 17 | 2 . . 15 Treads 386 | . . 214 172 Legs 25 | . . 25 . Wheels 819 | 70 112 637 . Hover . | . . . . Flight 10 | . . 10 . Fastest Speed 50 | 50 90 80 50 Average Speed 113 | 89 90 110 151 Slowest Speed 190 | 100 90 190 160 Overloaded Moves . | . . . . Propulsion Burnouts . | . . . . Robots Hopped . | . . . . Cave-ins Triggered . | . . . . Exploration Rate (%) 35 | 4 27 72 40 Regions Visited 3 Branch Regions 1 Pre-discovered Areas . | . . . . Known Exits Taken . | . . . . Unknown Exits Taken 3 | 1 1 1 . Scrap Searched . | . . . . Spaces Dug . | . . . . Terrain Destroyed 19 | . . 15 4 Melee . | . . . . Projectile . | . . . . AOE 19 | . . 15 4 Terrain Rammed . | . . . . Walls Destroyed . | . . . . Machines Disabled . | . . . . Actions | -11 -10 -9 -9 --------- Run | Yrd Mat Mat Min Total 1539 | 77 118 1115 229 Wait 114 | 1 3 77 33 Move 1254 | 71 111 885 187 Hop . | . . . . Pick Up 12 | . 2 10 . Fast Attach 17 | 5 2 10 . Attach 1 | . . 1 . Detach . | . . . . Swap 22 | . . 22 . Drop 16 | . . 16 . Fire 100 | . . 91 9 Melee . | . . . . Ram 2 | . . 2 . Kick . | . . . . Crush 1 | . . 1 . Escape Stasis . | . . . . Rewire . | . . . . Trap . | . . . . Miscellaneous . | . . . . Route ------- -11/Scrapyard -10/Materials -9/Materials (discovered 2 exits: [*Mat] / [*Min]) -9/Mines (discovered 1 exit: [*Mat]) History --------- Turn | Location | Event 24 | -11/Scrapyard | Discovered new exit (range 15) 74 | -11/Scrapyard | Entered Materials 179 | -10/Materials | Discovered new exit (range 5) 182 | -10/Materials | Entered another Materials area 182 | -9/Materials | Evolved 2 slots: Propulsion x1, Weapon x1 495 | -9/Materials | Destroyed 8 combat bots 910 | -9/Materials | Discovered new exit (range 16) 1457 | -9/Materials | Build established: Scavenger-Gunner 1567 | -9/Materials | Discovered new exit (range 15) 1591 | -9/Materials | Entered Mines 1784 | -9/Mines | Discovered new exit (range 6) 1909 | -9/Mines | Assembled infested the area 1913 | -9/Mines | Learned Materials non-interactive machine intel 1914 | -9/Mines | Assisted by a Guerilla fighting off Assembled 1922 | -9/Mines | Core integrity fell below 50% 1930 | -9/Mines | Core integrity fell below 20% 1935 | -9/Mines | Destroyed by as-50734 with Assembled Rifle Last Messages --------------- 01914_ A derelict emerges from the shadows: "You need to get out of here! I've been tracking a group of Assembled to figure out where they're coming from, and they're closing on this area, come on!" 01918_ C-30 ARC bursts open, deploying its payload. 01918_ D-53 Grenadier unfolds itself. 01918_ T-07 Excavator destroyed. 01919_ Imp. EM Shotgun destroyed. 01920_ Lgt. Treads destroyed. 01923_ The unstable cave ceiling collapses. 01925_ Lgt. Treads destroyed. 01925_ Ion Engine destroyed. 01925_ Imp. Heat Sink destroyed. 01925_ Hvy. Assault Rifle destroyed. 01927_ U-05 Engineer lays Concrete. 01927_ Shotgun destroyed. 01928_ The unstable cave ceiling collapses. 01928_ U-05 Engineer lays Concrete. 01930_ U-05 Engineer builds a Wall. 01930_ K-01 Serf collects debris. 01931_ The unstable cave ceiling collapses. Map ----- +----------------------------------------------------+ | | | | | | | ?????????????????????????????????????????????????? | | ?????????????????????????????????????????????????? | | ?????????????????????????????????????????????????? | | ?????????????????????????????????????????????????? | | ?????????????????????????????????????????????????? | | ?????????????????????????????????????????????????? | | ???????????????????????????#?????????????????????? | | ???????????????????????### #???#??????????????? ? | | ?????????????????????## ### ?????????????# ? | | ?????????????????? ??????????## ?? | | ?????????????????? =% < ????????# ? | | ??????????????????# ! ????????? """ | | ??????????????????# ???????? """ | | ??????????????##### ! ??????## """ # | | ???????????????aa aa%= ?###### # # | | ???????????????? aa #?# # # " #? | | ?????????????????#a ### % #?? | | ?????????????????# a aaa ## # #??? | | ?????????????????# a a # ### | | ?????????????????# d d | | ????????????????## | | ????????????????# ### | | ???????????????? ### @ ##### #?? | | ???????????????????????### ##???## ##?? | | ?????????????????????????####?????## # #?? | | ???????????????????????????????????## # #### | | ????????????????????????????????????#### | | ???????????????????????????????????????########## | | ????????????????????????????????????????????????## | | ?????????????????????????????????????????????????# | | ????????????????????????????????????????????????## | | ????????????????????????????????????????????????# | | ??????????????????????????????????????####?????## | | ?????????????????????????????????????## ##????# | | ????????????????????????????????????## ###### | | ???????????????????????????????###### | | ???????????????????????????????# | | ???????????????????????????????# ###### ### | | ??????????????????????????????##[ "# ##????# #?# | | ??????????????????????????????#"=="## ##?????# #?? | | ??????????????????????????????#" #####??????# #?? | | ?????????????????????????####### ##?????????# #?? | | ?????????????????????????# #?????????# #?? | | ?????????????????????????# #?????????# #?? | | ?????????????????????????# #?????????# #?? | | ?????????????????????????# """ """ #?????????# #?? | | ?????????????????????????# """ """ #?????????# #?? | +----------------------------------------------------+ Best States ------------- Heat Dissipation 42 Energy Generation 10 Energy Capacity 250 Matter Stores 300 Matter Capacity 300 Sight Range 16 Robot Scan Range 14 Terrain Scan Density 10 Evasion (%) 50 Targeting Accuracy 6 Recoil Reduction 3 Item Schematics ----------------- Imp. Flight Unit | -9/Materials | Scanalyzed Robot Schematics ------------------ None Fabricated ------------ Nothing Alien Tech Used ----------------- None Achievements -------------- None Challenges ------------ None Game ------ Seed AssaultMultinovaClaw Manual? 0 Play Time 00:15:14 Cumulative 86.3 hours Start 2024.09.16 @ 08:02:56 End 2024.09.16 @ 19:11:53 Sessions 3 Manual Loads 0 Difficulty Rogue Special Mode None Game No. 150 Rogue 150 Adventurer 0 Explorer 0 Win Type - Total 0 Types 0/0/0/0/0/0/0/0/0 Lore% 45 Gallery% 48 Achievement% 39 Wizard Run 0 Options --------- Layout 0 ASCII 0 Keyboard 1 Movement Numpad Keybinds 0 Fullscreen 2 Font 18/SmallcapsGlow Map View 76x50 Zoom Use 0% Tactical HUD 1 Map Filters NONE Filters NONE Steam 1 RUN: ae4d5242-d010-4def-aac2-11b6aedec1b0